bitfinex/quotes_SOLUSD_20251031
["timestamp","ask_amount","ask_price","bid_price","bid_amount"]
[1761908794913,1.98800055,186.69,186.68,68.05671572]
[1761908795813,0.7,186.72,186.68,68.05671572]
[1761908796014,1.98800055,186.69,186.68,68.05671572]
[1761908796510,0.7,186.72,186.68,68.05671572]
[1761908796711,1.98800055,186.69,186.68,68.05671572]
[1761908798202,1.98800055,186.7,186.68,68.05671572]
[1761908800511,1.98800055,186.7,186.68,68.74671572]
[1761908803728,1.98800055,186.7,186.68,63.39]
[1761908804215,6.68136446,186.69,186.68,62.7]
[1761908805098,5.98136446,186.69,186.68,62.7]
[1761908805905,6.68136446,186.69,186.68,62.7]
[1761908806407,3.99336391,186.69,186.68,63.39]
[1761908806618,5.58069626,186.74,186.68,70.73476078]
[1761908806918,5.98379658,186.73,186.69,0.69]
[1761908807124,3.99579603,186.72,186.69,0.69]
[1761908807322,3.99710438,186.71,186.69,63.39]
[1761908807523,1.98800055,186.73,186.69,63.39]
[1761908807701,5.98510679,186.72,186.7,6.04616036]
[1761908808830,3.99732174,186.71,186.7,0.69]
[1761908809500,5.98532229,186.71,186.7,0.69]
[1761908809703,5.98532229,186.71,186.69,62.7]
[1761908810014,1.98800055,186.71,186.69,63.39]
[1761908810215,1.98800055,186.71,186.69,68.74640033]
[1761908810928,1.98800055,186.72,186.69,68.74640033]
[1761908811230,3.99821556,186.71,186.7,0.69]
[1761908811727,1.98800055,186.73,186.7,63.39]
[1761908812045,3.99943851,186.72,186.7,63.39]
[1761908812208,1.98800055,186.73,186.71,0.69]
[1761908812531,1.98800055,186.72,186.7,63.39]
[1761908813024,0.7,186.74,186.7,63.39]
[1761908813213,1.98800055,186.71,186.7,62.7]
[1761908813414,5.9870441,186.71,186.7,62.7]
[1761908818343,6.6870441,186.71,186.7,62.7]
[1761908819532,5.9870441,186.71,186.7,62.7]
[1761908819837,5.9870441,186.71,186.7,63.36]
[1761908820041,5.9870441,186.71,186.7,62.7]
[1761908820342,22.58000055,186.76,186.7,70.70418694]
[1761908820542,4.00268262,186.75,186.71,0.66]
[1761908820837,4.00268262,186.74,186.71,2.64800055]
[1761908821035,4.00268262,186.73,186.71,65.34800055]
[1761908821231,22.58000055,186.76,186.72,0.66]
[1761908821440,4.00256887,186.75,186.73,5.35532587]
[1761908821638,1.98800055,186.78,186.73,7.34332642]
[1761908821828,4.00327913,186.77,186.74,0.66]
[1761908822142,4.00327913,186.76,186.74,63.36]
[1761908822445,1.98800055,186.77,186.74,63.36]
[1761908822639,4.00221452,186.76,186.75,0.66]
[1761908822849,5.99021507,186.76,186.75,0.66]
[1761908823226,5.99021507,186.76,186.74,62.7]
[1761908823438,4.00221452,186.75,186.74,63.36]
[1761908824530,1.98800055,186.76,186.74,63.36]
[1761908824731,1.98800055,186.77,186.75,0.66]
[1761908824925,1.98800055,186.77,186.75,63.36]
[1761908825326,3.10252623,186.77,186.76,0.66]
[1761908825622,7.10301098,186.77,186.76,0.66]
[1761908826252,3.10252623,186.77,186.76,0.66]
[1761908826832,3.10252623,186.77,186.74,5.3550065]
[1761908827153,3.10252623,186.76,186.75,0.66]
[1761908827847,3.10252623,186.77,186.75,0.66]
[1761908828430,3.10252623,186.79,186.75,0.66]
[1761908828645,3.99727134,186.78,186.75,0.66]
[1761908828846,3.10252623,186.79,186.75,6.01463134]
[1761908829027,7.09979714,186.78,186.75,6.01463134]
[1761908829227,3.10252623,186.78,186.76,0.66]
[1761908829646,3.10252623,186.78,186.75,5.35463134]
[1761908829850,3.10252623,186.77,186.75,0.66]
[1761908830146,3.10252623,186.77,186.73,71.15759423]
[1761908830338,3.10252623,186.77,186.74,0.66]
[1761908830925,0.69,186.79,186.74,0.66]
[1761908831130,0.69,186.79,186.74,6.01498482]
[1761908831131,7.09813766,186.78,186.74,6.01498482]
[1761908831442,3.10252623,186.78,186.74,6.01498482]
[1761908831650,3.10252623,186.78,186.75,0.66]
[1761908832851,3.10252623,186.78,186.75,6.01472197]
[1761908833254,3.10252623,186.78,186.76,0.66]
[1761908833554,0.2,186.81,186.76,0.66]
[1761908833851,3.99460381,186.8,186.76,66.46252623]
[1761908834056,23.89452623,186.81,186.76,66.46252623]
[1761908834263,3.99487891,186.8,186.77,0.66]
[1761908834859,7.09740514,186.8,186.77,0.66]
[1761908835044,3.10252623,186.8,186.77,0.66]
[1761908835554,3.10252623,186.79,186.77,63.36]
[1761908835861,0.69,186.8,186.77,62.7]
[1761908836041,3.10252623,186.78,186.77,62.7]
[1761908836854,7.78581635,186.78,186.77,62.7]
[1761908837756,13.13970862,186.78,186.77,62.7]
[1761908838959,13.13949088,186.78,186.77,62.7]
[1761908839549,13.13949088,186.78,186.72,0.68]
[1761908839550,29.6267478,186.78,186.71,62.7]
[1761908839754,3.10252623,186.72,186.7,0.68]
[1761908840058,3.10252623,186.71,186.68,0.68]
[1761908840235,3.10252623,186.75,186.67,0.68]
[1761908840236,3.10252623,186.69,186.67,0.68]
[1761908840554,3.10252623,186.68,186.67,62.7]
[1761908840946,3.10252623,186.68,186.67,63.38]
[1761908841948,3.78252623,186.68,186.64,63.38]
[1761908842160,3.10252623,186.67,186.65,0.68]
[1761908842551,3.10252623,186.66,186.65,0.68]
[1761908842760,3.10252623,186.66,186.64,62.7]
[1761908842967,3.10252623,186.65,186.64,62.7]
[1761908843162,3.10252623,186.65,186.64,0.68]
[1761908843470,3.10252623,186.65,186.62,72.98943642]
[1761908843761,3.10252623,186.65,186.63,0.68]
[1761908846663,6.03688652,186.68,186.63,0.68]
[1761908846664,0.68,186.68,186.63,0.68]
[1761908846961,3.10252623,186.66,186.63,0.68]
[1761908847158,3.10252623,186.65,186.63,0.68]
[1761908847336,3.10252623,186.64,186.63,62.7]
[1761908849551,8.4604345,186.64,186.63,62.7]
[1761908849751,13.11507508,186.64,186.63,62.7]
[1761908850253,29.22894643,186.64,186.63,62.7]
[1761908852258,25.24430585,186.64,186.63,62.7]
[1761908853867,29.22200671,186.64,186.62,9.60943642]
[1761908854170,3.77252623,186.63,186.62,9.60943642]
[1761908854557,19.88726315,186.63,186.62,9.60943642]
[1761908854759,25.2454585,186.63,186.62,9.60943642]
[1761908854949,9.13072158,186.63,186.62,9.60943642]
[1761908855150,23.69452623,186.63,186.62,9.60943642]
[1761908855547,3.10252623,186.63,186.62,10.28943642]
[1761908856358,36.70587135,186.65,186.62,10.28943642]
[1761908856554,3.10252623,186.64,186.63,0.68]
[1761908856984,3.10252623,186.64,186.62,9.60943642]
[1761908857173,3.10252623,186.63,186.62,72.98943642]
[1761908857480,3.10252623,186.63,186.62,72.30943642]
[1761908858657,29.72272158,186.63,186.62,72.30943642]
[1761908859971,29.72272158,186.63,186.62,9.60943642]
[1761908860789,16.11473692,186.64,186.62,10.28943642]
[1761908860999,0.67,186.68,186.62,10.28943642]
[1761908861000,3.10252623,186.69,186.63,3.78252623]
[1761908861163,3.10252623,186.68,186.63,3.78252623]
[1761908861369,3.10252623,186.68,186.64,0.68]
[1761908861672,3.10252623,186.67,186.64,0.68]
[1761908862475,20.592,186.66,186.64,0.68]
[1761908863469,20.592,186.67,186.64,3.78252623]
[1761908863671,20.592,186.68,186.65,3.10252623]
[1761908863863,20.592,186.68,186.65,0.68]
[1761908864059,20.592,186.68,186.65,3.10252623]
[1761908864280,3.10252623,186.67,186.63,0.68]
[1761908864595,3.77252623,186.67,186.63,0.68]
[1761908864762,20.592,186.68,186.63,0.68]
[1761908865090,24.36452623,186.68,186.63,0.68]
[1761908865303,3.10252623,186.67,186.63,0.68]
[1761908865592,24.36452623,186.68,186.63,0.68]
[1761908865768,23.69452623,186.68,186.63,0.68]
[1761908867078,23.69452623,186.68,186.63,9.14066286]
[1761908867278,3.10252623,186.71,186.65,3.10252623]
[1761908867468,23.69452623,186.72,186.66,3.10252623]
[1761908867668,39.8023412,186.72,186.66,3.10252623]
[1761908867871,39.8023412,186.72,186.67,0.68]
[1761908868069,3.10252623,186.71,186.67,0.68]
[1761908868273,0.67,186.71,186.67,0.68]
[1761908868496,0.67,186.7,186.65,0.68]
[1761908868681,3.10252623,186.68,186.65,0.68]
[1761908868874,3.10252623,186.68,186.64,0.68]
[1761908869500,3.10252623,186.69,186.64,9.14026481]
[1761908870078,3.10252623,186.7,186.65,3.10252623]
[1761908870280,3.10252623,186.7,186.65,3.78252623]
[1761908870477,3.10252623,186.71,186.66,0.68]
[1761908870791,3.10252623,186.71,186.66,66.48252623]
[1761908871180,3.10252623,186.7,186.67,0.68]
[1761908871694,3.77252623,186.69,186.66,62.7]
[1761908872189,3.10252623,186.67,186.66,62.7]
[1761908872795,3.77252623,186.67,186.66,62.7]
[1761908873091,3.77252623,186.67,186.62,9.60943642]
[1761908873092,24.36452623,186.67,186.62,72.30943642]
[1761908873282,3.10252623,186.64,186.62,72.98943642]
[1761908873480,3.10252623,186.64,186.63,0.68]
[1761908873871,3.10252623,186.64,186.62,72.30943642]
[1761908874071,3.10252623,186.64,186.62,72.98943642]
[1761908874679,3.77252623,186.63,186.62,9.60943642]
[1761908874892,3.10252623,186.63,186.62,9.60943642]
[1761908875600,3.77252623,186.63,186.62,9.60943642]
[1761908875895,9.13072158,186.63,186.62,9.60943642]
[1761908876271,13.10724496,186.63,186.62,9.60943642]
[1761908878991,22.71668138,186.63,186.62,9.60943642]
[1761908880182,13.5859598,186.63,186.62,9.60943642]
[1761908880486,24.56852338,186.63,186.62,9.60943642]
[1761908880687,28.33104961,186.63,186.62,72.30943642]
[1761908881199,33.68924496,186.63,186.62,72.30943642]
[1761908883215,49.80398188,186.63,186.62,72.30943642]
[1761908883406,33.68924496,186.63,186.62,72.30943642]
[1761908883592,33.02924496,186.63,186.62,9.60943642]
[1761908883906,12.43724496,186.63,186.62,9.60943642]
[1761908884484,7.07904961,186.63,186.62,9.60943642]
[1761908884678,7.07904961,186.63,186.62,10.25943642]
[1761908884891,12.43724496,186.63,186.62,9.60943642]
[1761908885096,16.03310333,186.63,186.62,9.60943642]
[1761908885297,14.92009822,186.63,186.62,9.60943642]
[1761908885897,5.9660445,186.63,186.62,10.25943642]
[1761908886082,3.97652338,186.63,186.62,10.25943642]
[1761908886497,5.9660445,186.63,186.62,10.25943642]
[1761908888678,3.97652338,186.63,186.62,10.25943642]
[1761908889005,3.97652338,186.63,186.62,78.31791889]
[1761908889223,1.98952112,186.67,186.62,80.30744001]
[1761908889390,5.98790109,186.66,186.63,0.65]
[1761908889711,1.98952112,186.64,186.63,0.65]
[1761908889912,3.99837997,186.64,186.63,0.65]
[1761908891208,3.99837997,186.64,186.63,63.35]
[1761908894102,3.99837997,186.64,186.63,68.70819535]
[1761908895195,4.25623592,186.71,186.63,70.69771647]
[1761908895516,1.98952112,186.68,186.64,0.65]
[1761908895711,3.99961635,186.67,186.64,63.35]
[1761908895916,3.99961635,186.66,186.64,63.35]
[1761908896219,3.99961635,186.65,186.64,62.7]
[1761908896590,1.98952112,186.67,186.64,63.35]
[1761908896790,4.00028547,186.66,186.65,0.65]
[1761908897721,4.00028547,186.66,186.65,63.35]
[1761908899202,4.00028547,186.66,186.65,68.70762121]
[1761908899521,4.00028547,186.68,186.65,68.70762121]
[1761908899723,1.98952112,186.69,186.65,68.70762121]
[1761908899724,3.59623592,186.7,186.66,0.68]
[1761908899898,3.99975058,186.69,186.66,6.03707741]
[1761908900220,3.99975058,186.68,186.66,0.68]
[1761908900405,1.98952112,186.69,186.67,0.68]
[1761908900609,3.99987483,186.68,186.67,0.68]
[1761908900802,3.99987296,186.68,186.67,0.68]
[1761908904107,3.99987296,186.68,186.67,63.38]
[1761908905030,5.98939408,186.68,186.67,62.7]
[1761908905403,3.99987296,186.68,186.67,62.7]
[1761908905610,5.98939408,186.68,186.67,62.7]
[1761908905810,3.99987296,186.68,186.67,62.7]
[1761908906010,5.98939408,186.68,186.67,62.7]
[1761908906831,3.99987296,186.68,186.67,63.38]
[1761908907244,5.98939408,186.68,186.67,63.38]
[1761908917822,1.98952112,186.69,186.67,68.73704719]
[1761908918022,1.98952112,186.69,186.68,0.72]
[1761908918236,1.98952112,186.69,186.68,63.42]
[1761908918542,3.99643178,186.69,186.68,63.42]
[1761908918722,5.9859529,186.69,186.68,63.42]
[1761908929034,5.9859529,186.69,186.68,62.7]
[1761908933968,5.9859529,186.69,186.68,63.42]
[1761908934461,5.9859529,186.69,186.68,62.7]
[1761908935653,12.06242619,186.69,186.68,62.7]
[1761908936461,15.66981292,186.69,186.68,62.7]
[1761908938645,23.6278974,186.69,186.62,73.02943642]
[1761908938954,23.6278974,186.69,186.62,9.60943642]
[1761908938955,1.98952112,186.63,186.62,9.60943642]
[1761908939160,5.9859529,186.63,186.62,9.60943642]
[1761908941264,12.05414825,186.63,186.62,9.60943642]
[1761908942261,5.9859529,186.63,186.62,9.60943642]
[1761908943450,5.99215917,186.63,186.62,9.60943642]
[1761908943848,5.99215775,186.63,186.62,9.60943642]
[1761908944250,6.70215775,186.63,186.62,9.60943642]
[1761908944644,5.99215775,186.63,186.62,9.60943642]
[1761908944864,4.00263663,186.63,186.62,73.02943642]
[1761908945060,1.98952112,186.66,186.62,78.38791889]
[1761908945258,4.00303721,186.65,186.63,0.72]
[1761908945458,4.00303721,186.64,186.63,0.72]
[1761908946145,5.99255833,186.64,186.62,72.30943642]
[1761908946346,5.99255833,186.63,186.62,72.30943642]
[1761908947347,7.11091947,186.63,186.62,72.30943642]
[1761908947872,7.11091947,186.63,186.62,73.02943642]
[1761908948071,7.11091947,186.63,186.62,72.30943642]
[1761908948252,7.11091947,186.63,186.62,73.02943642]
[1761908948747,7.10962593,186.63,186.62,73.02943642]
[1761908949471,7.10962593,186.63,186.62,72.30943642]
[1761908949764,7.81962593,186.63,186.62,72.30943642]
[1761908949986,13.17782128,186.63,186.62,72.30943642]
[1761908956667,12.46782128,186.63,186.62,72.30943642]
[1761908957057,13.17782128,186.63,186.62,72.30943642]
[1761908957377,12.46782128,186.63,186.62,72.30943642]
[1761908957563,7.10962593,186.63,186.62,72.30943642]
[1761908958171,20.592,186.62,186.55,63.5]
[1761908958475,3.10788226,186.56,186.55,63.5]
[1761908958781,3.10788226,186.56,186.55,62.8]
[1761908959366,3.10788226,186.56,186.55,63.5]
[1761908959868,20.592,186.61,186.55,68.86049316]
[1761908960073,3.10788226,186.58,186.56,0.7]
[1761908961171,3.10788226,186.6,186.56,63.4]
[1761908961375,3.10788226,186.6,186.57,0.7]
[1761908961564,3.10788226,186.6,186.57,6.05979452]
[1761908961967,3.10788226,186.6,186.58,0.7]
[1761908962176,3.10788226,186.61,186.58,0.7]
[1761908962376,20.592,186.63,186.58,0.7]
[1761908962682,3.10788226,186.59,186.58,0.7]
[1761908964363,3.10788226,186.6,186.58,0.7]
[1761908964865,3.10788226,186.61,186.58,0.7]
[1761908965283,6.0368025,186.68,186.59,3.10788226]
[1761908965470,3.9951277,186.67,186.6,0.7]
[1761908965808,3.10788226,186.65,186.6,3.80788226]
[1761908966188,3.10788226,186.67,186.61,0.7]
[1761908966368,3.99590507,186.66,186.62,8.46636473]
[1761908966567,3.99590507,186.66,186.62,5.35848247]
[1761908966766,3.99590507,186.66,186.63,0.7]
[1761908967266,3.99590507,186.65,186.63,0.7]
[1761908967604,3.10788226,186.67,186.63,6.05812804]
[1761908968204,3.10788226,186.67,186.64,0.7]
[1761908968611,16.10867989,186.75,186.64,0.7]
[1761908968888,3.10788226,186.72,186.67,3.10788226]
[1761908969261,3.99673833,186.71,186.68,3.76788226]
[1761908969464,3.99673833,186.7,186.68,9.1243649]
[1761908969673,0.65,186.77,186.69,3.76788226]
[1761908969887,3.10788226,186.74,186.69,3.76788226]
[1761908970087,7.10495571,186.73,186.7,0.66]
[1761908970287,3.99707345,186.72,186.7,0.66]
[1761908970485,3.10788226,186.73,186.7,0.66]
[1761908970804,3.9962267,186.72,186.7,0.66]
[1761908970986,3.10788226,186.73,186.7,0.66]
[1761908971299,3.996455,186.72,186.7,0.66]
[1761908971495,3.996455,186.72,186.67,29.05667086]
[1761908971496,7.10433726,186.72,186.67,29.05667086]
[1761908971702,3.996455,186.71,186.68,0.66]
[1761908972077,3.996455,186.71,186.68,3.76788226]
[1761908972278,3.10788226,186.75,186.7,3.10788226]
[1761908972493,3.99594066,186.74,186.7,3.10788226]
[1761908972700,3.99594066,186.73,186.71,0.66]
[1761908972879,3.10788226,186.75,186.71,0.66]
[1761908973079,7.10424379,186.74,186.71,0.66]
[1761908973281,3.99636153,186.73,186.71,0.66]
[1761908973788,3.10788226,186.75,186.71,6.01584426]
[1761908973994,3.99616347,186.74,186.71,6.01584426]
[1761908974193,3.10788226,186.72,186.71,62.7]
[1761908974509,7.10321316,186.72,186.71,62.7]
[1761908975882,7.75321316,186.72,186.71,62.7]
[1761908977282,7.10321316,186.72,186.71,62.7]
[1761908979914,7.10151069,186.72,186.71,62.7]
[1761908981701,7.75151069,186.72,186.71,62.7]
[1761908982698,3.99362843,186.72,186.71,62.7]
[1761908983028,3.10788226,186.77,186.71,71.82378178]
[1761908983332,7.75123984,186.76,186.71,68.71589952]
[1761908983487,3.99335758,186.75,186.71,68.71589952]
[1761908983688,4.64335758,186.75,186.71,68.71589952]
[1761908984120,3.99335758,186.75,186.72,0.66]
[1761908985926,3.10788226,186.76,186.72,0.66]
[1761908986145,3.99138445,186.75,186.72,71.82345706]
[1761908986316,3.10788226,186.77,186.72,68.7155748]
[1761908986645,3.99091129,186.76,186.73,0.66]
[1761908987021,3.10788226,186.78,186.73,0.66]
[1761908987218,3.9912884,186.77,186.73,0.66]
[1761908988227,3.9912884,186.77,186.74,3.10788226]
[1761908988430,3.10788226,186.79,186.74,3.10788226]
[1761908988636,3.98948426,186.78,186.75,0.66]
[1761908988843,3.98948426,186.78,186.75,63.36]
[1761908989218,3.98948426,186.78,186.76,0.66]
[1761908990546,3.10788226,186.79,186.76,0.66]
[1761908991642,3.10788226,186.79,186.76,63.36]
[1761908991953,3.10788226,186.8,186.76,63.36]
[1761908992172,3.10788226,186.8,186.77,0.66]
[1761908992330,3.30788226,186.81,186.77,63.36]
[1761908992537,3.98538419,186.8,186.77,63.36]
[1761908992753,3.98538419,186.8,186.78,0.66]
[1761908993460,3.30788226,186.81,186.78,0.66]
[1761908994231,3.10788226,186.8,186.78,0.66]
[1761908994841,3.10788226,186.79,186.78,0.66]
[1761908996032,3.30788226,186.81,186.78,6.0138753]
[1761908996430,3.30788226,186.81,186.79,0.66]
[1761908997162,3.10788226,186.8,186.79,0.66]
[1761908997367,3.10788226,186.8,186.79,63.36]
[1761908999350,3.10788226,186.8,186.79,62.7]
[1761908999550,3.76788226,186.8,186.79,62.7]
[1761909000162,0.2,186.81,186.79,63.42]
[1761909000364,0.2,186.81,186.8,0.72]
[1761909003845,0.2,186.81,186.8,63.42]
[1761909005137,0.2,186.82,186.81,62.5]
[1761909005342,0.2,186.82,186.81,76.11670995]
[1761909005538,0.2,186.84,186.83,12.89670995]
[1761909005733,0.2,186.84,186.83,14.15195589]
[1761909005932,0.2,186.84,186.83,4.3631282]
[1761909006754,0.2,186.84,186.83,9.71558765]
[1761909007359,0.2,186.84,186.83,8.59107113]
[1761909010773,0.2,186.86,186.85,62.1]
[1761909010951,0.2,186.86,186.85,64.08336574]
[1761909011153,0.2,186.86,186.85,64.80336574]
[1761909011953,0.2,186.86,186.85,62.1]
[1761909012370,0.2,186.86,186.85,62.82]
[1761909013181,0.2,186.86,186.85,68.17188654]
[1761909013387,0.2,186.86,186.85,62.82]
[1761909013682,0.2,186.86,186.85,68.17188654]
[1761909013860,0.2,186.86,186.85,70.15525228]
[1761909016384,0.2,186.87,186.86,61.9]
[1761909016569,0.2,186.87,186.86,2.70336574]
[1761909017580,0.2,186.87,186.86,8.05496586]
[1761909018063,0.2,186.87,186.86,70.49012587]
[1761909021669,4.1774741,186.91,186.9,61.5]
[1761909021889,4.8774741,186.91,186.9,61.5]
[1761909022767,0.2,186.91,186.9,62.17]
[1761909023380,0.9,186.91,186.9,61.5]
[1761909023775,2.88336574,186.91,186.9,61.5]
[1761909024796,0.9,186.91,186.9,61.5]
[1761909025185,0.2,186.91,186.9,61.5]
[1761909025995,0.9,186.91,186.9,61.5]
[1761909027082,0.2,186.91,186.9,61.5]
[1761909028092,2.88336574,186.91,186.9,61.5]
[1761909028484,0.9,186.91,186.9,61.5]
[1761909028697,2.88336574,186.91,186.9,61.5]
[1761909028869,0.9,186.91,186.9,61.5]
[1761909029674,0.2,186.91,186.9,61.5]
[1761909030278,0.2,186.92,186.91,71.08882769]
[1761909030494,0.2,186.92,186.91,73.77219343]
[1761909032102,0.2,186.92,186.91,79.12236196]
[1761909033786,0.2,186.92,186.91,77.13899622]
[1761909034010,0.2,186.92,186.91,79.12236196]
[1761909035394,0.2,186.95,186.94,60.7]
[1761909036409,0.2,186.95,186.94,66.04930993]
[1761909036614,0.2,186.95,186.94,68.73267567]
[1761909037501,0.2,186.95,186.94,66.04930993]
[1761909037708,0.2,186.95,186.94,60.7]
[1761909038096,0.2,186.95,186.94,68.03267567]
[1761909038305,0.2,186.95,186.94,68.73267567]
[1761909038910,0.2,186.95,186.94,60.7]
[1761909039488,0.87,186.95,186.94,60.7]
[1761909040107,0.2,186.95,186.94,60.7]
[1761909040809,0.2,186.95,186.94,66.04930993]
[1761909041016,0.2,186.95,186.94,66.74930993]
[1761909041217,0.2,186.95,186.94,68.73267567]
[1761909043104,0.2,186.95,186.94,66.74930993]
[1761909045022,0.2,186.96,186.95,60.5]
[1761909052031,2.85336574,186.96,186.95,60.5]
[1761909052729,0.87,186.96,186.95,60.5]
[1761909059320,0.2,186.96,186.95,60.5]
[1761909059834,0.9,186.96,186.95,60.5]
[1761909060233,0.2,186.96,186.95,60.5]
[1761909060618,0.9,186.96,186.95,60.5]
[1761909061814,2.88336574,186.96,186.95,60.5]
[1761909064119,0.9,186.96,186.95,60.5]
[1761909064841,6.88087096,186.96,186.95,60.5]
[1761909066125,6.18087096,186.96,186.95,60.5]
[1761909066529,4.19750522,186.96,186.95,60.5]
[1761909068545,0.2,186.96,186.95,66.5090238]
[1761909070127,0.2,186.98,186.95,60.3]
[1761909070328,7.09896233,186.97,186.95,60.3]
[1761909070637,4.70312039,186.96,186.95,60.3]
[1761909072239,4.00312039,186.96,186.95,60.3]
[1761909075028,7.79896233,186.96,186.95,60.3]
[1761909075226,4.70312039,186.96,186.95,60.3]
[1761909075434,7.79896233,186.96,186.95,60.3]
[1761909075636,11.40256018,186.96,186.95,60.3]
[1761909076525,4.70312039,186.96,186.95,60.3]
[1761909076730,7.60671824,186.96,186.95,60.3]
[1761909076940,4.00312039,186.96,186.95,60.3]
[1761909077147,4.00312039,186.96,186.95,66.3090238]
[1761909078428,4.00312039,186.96,186.95,69.40486574]
[1761909080644,4.00312039,186.96,186.95,69.93976812]
[1761909080852,0.2,186.98,186.95,69.93976812]
[1761909081049,4.01326055,186.97,186.96,0.7]
[1761909081346,0.2,186.99,186.98,56.08673945]
[1761909081533,0.2,186.99,186.98,59.71739794]
[1761909081733,0.2,186.99,186.98,60.41739794]
[1761909082235,0.2,186.99,186.98,70.20622563]
[1761909082653,0.2,186.99,186.98,75.5543912]
[1761909086137,2.6548001,187.04,187.03,55.28673945]
[1761909086341,2.6548001,187.04,187.03,58.38258139]
[1761909086640,2.6548001,187.04,187.03,59.08258139]
[1761909088134,2.6548001,187.04,187.03,64.4293172]
[1761909089348,2.6548001,187.04,187.03,58.38258139]
[1761909089658,2.6548001,187.04,187.03,55.28673945]
[1761909090242,2.6548001,187.04,187.03,63.7293172]
[1761909090537,2.6548001,187.04,187.03,58.38258139]
[1761909091658,2.6548001,187.04,187.03,63.7293172]
[1761909091861,2.6548001,187.04,187.03,60.63347526]
[1761909092238,2.6548001,187.04,187.03,55.28673945]
[1761909095360,3.3748001,187.04,187.03,55.28673945]
[1761909096664,2.6548001,187.04,187.03,55.28673945]
[1761909098968,3.3748001,187.04,187.03,55.28673945]
[1761909099751,6.47064204,187.04,187.03,55.28673945]
[1761909099951,11.81709199,187.04,187.03,55.28673945]
[1761909100151,6.47064204,187.04,187.03,55.28673945]
[1761909100551,3.3748001,187.04,187.03,55.28673945]
[1761909100756,6.47064204,187.04,187.03,55.28673945]
[1761909104679,11.81709199,187.04,187.03,55.28673945]
[1761909108374,11.81709199,187.04,187.0,64.89617587]
[1761909108670,3.09584194,187.01,187.0,64.89617587]
[1761909109095,3.81584194,187.01,187.0,64.89617587]
[1761909110453,9.16314957,187.01,187.0,64.89617587]
[1761909110654,9.16314957,187.01,187.0,9.60943642]
[1761909111983,0.72,187.01,187.0,9.60943642]
[1761909112183,20.592,187.01,187.0,10.27943642]
[1761909112391,9.16269917,187.03,187.0,9.60943642]
[1761909112565,0.72,187.02,187.0,9.60943642]
[1761909112974,3.81584194,187.02,187.0,9.60943642]
[1761909113175,8.44269917,187.03,187.0,9.60943642]
[1761909113376,9.16269917,187.03,187.0,9.60943642]
[1761909113683,0.72,187.02,187.0,9.60943642]
[1761909114561,9.16269917,187.03,187.0,9.60943642]
[1761909115186,9.16269917,187.03,187.0,64.89617587]
[1761909115880,0.72,187.02,187.0,64.89617587]
[1761909116262,3.09584194,187.01,187.0,64.89617587]
[1761909116667,3.81584194,187.01,187.0,64.89617587]
[1761909116862,24.40784194,187.01,187.0,64.89617587]
[1761909117080,40.48889042,187.01,187.0,64.89617587]
[1761909117292,45.83619805,187.01,187.0,64.89617587]
[1761909118175,49.83087625,187.01,187.0,64.89617587]
[1761909120491,49.83283156,187.01,187.0,64.89617587]
[1761909120974,49.83283156,187.01,187.0,9.60943642]
[1761909121883,59.62165925,187.01,187.0,9.60943642]
[1761909122202,59.62165925,187.01,187.0,1e-08]
[1761909122203,63.22018531,187.01,187.0,1e-08]
[1761909122796,3.09584194,186.94,186.93,55.28673945]
[1761909123275,3.80584194,186.94,186.93,55.28673945]
[1761909123879,9.15515187,186.94,186.93,55.28673945]
[1761909127887,9.15515187,186.94,186.89,0.67]
[1761909128088,3.09584194,186.92,186.89,63.37]
[1761909128292,3.09584194,186.91,186.89,62.7]
[1761909128782,3.80584194,186.91,186.89,62.7]
[1761909128978,3.09584194,186.9,186.89,62.7]
[1761909129180,3.09584194,186.9,186.86,0.67]
[1761909129181,24.39784194,186.9,186.86,0.67]
[1761909129418,24.39784194,186.9,186.84,62.7]
[1761909129419,1.98334204,186.88,186.84,63.37]
[1761909129583,37.39167311,186.9,186.85,0.67]